Cogmind - Beta 14 @@@ ROGUE MODE // 2025.01.12 @ 12:33:26 Player: aloola Result: Destroyed by exploding Nuclear Reactor Performance ------------- Evolutions (1) 500 Regions Visited (2) 400 Robots Destroyed (21) 105 Value Destroyed (383) 383 Prototype IDs (0) 0 Alien Tech Used (0) 0 Bonus (0) 0 TOTAL SCORE: 1388 Bonus ------- None Cogmind --------- Core Integrity 0/400 Matter 224/300 Energy 100/100 System Corruption 0% Temperature Cool (0) Movement Flying (360) Ox4 Location -9/Materials Parts ------- > --- POWER (1) -------- (None) > --- PROPULSION (4) --- Flight Unit > --- UTILITY (2) ------ Large Storage Unit > --- WEAPON (2) ------- (None) > --- INVENTORY (15) --- Light Ion Engine Light Ion Engine Light Ion Engine Flight Unit Flight Unit Flight Unit Large Storage Unit Improved Terrain Scanner Seismic Detector ECM Suite Shield Generator Peak State ------------ > --- POWER ------------ Light Ion Engine > --- PROPULSION ------- Light Treads Light Treads > --- UTILITY ---------- Small Storage Unit Improved Terrain Scanner > --- WEAPON ----------- EM Pulse Gun Light Assault Rifle > --- INVENTORY -------- Light Ion Engine Light Ion Engine Light Assault Rifle [Rating: 9] Favorites ----------- Power Ion Engine Engine Ion Engine Propulsion Light Treads Treads Light Treads Flight Unit Flight Unit Utility Large Storage Unit Device Seismic Detector Storage Large Storage Unit Protection Hardened Light Armor Plating Weapon Light Assault Rifle Energy Gun EM Pulse Gun Ballistic Gun Light Assault Rifle Launcher Grenade Launcher Special Melee Weapon Datajack Build | -11 -10 -9 ------- Run | Yrd Mat Mat Slots Evolved 2 | . . 2 Power . | . . . Propulsion 2 | . . 2 Utility . | . . . Weapon . | . . . Parts Attached 22 | 8 2 12 Power 3 | 1 1 1 Engine 3 | 1 1 1 Core . | . . . Reactor . | . . . Propulsion 6 | 2 . 4 Treads 2 | 2 . . Leg . | . . . Wheel . | . . . Hover . | . . . Flight 4 | . . 4 Utility 7 | 3 1 3 Device 3 | 2 . 1 Storage 2 | 1 1 . Processor . | . . . Hackware . | . . . Protection 2 | . . 2 Artifact . | . . . Weapon 6 | 2 . 4 Energy Gun 2 | 1 . 1 Energy Cannon . | . . . Ballistic Gun 1 | 1 . . Ballistic Cannon . | . . . Launcher 1 | . . 1 Special Weapon . | . . . Impact Weapon . | . . . Slashing Weapon . | . . . Piercing Weapon . | . . . Special Melee Weapon 2 | . . 2 Unidentified Prototypes . | . . . Parts Lost 11 | . . 11 Power 1 | . . 1 Propulsion 5 | . . 5 Utility 2 | . . 2 Weapon 3 | . . 3 Highest Loss Streak 9 | . . 9 To Critical Strikes . | . . . Average Slot Usage (%) 83 | . 100 69 Engine 11 | . 14 9 Treads 22 | . 28 18 Flight 1 | . . 3 Device 9 | . 14 6 Storage 12 | . 14 11 Energy Gun 8 | . 14 3 Ballistic Gun 11 | . 14 9 Launcher 2 | . . 4 Peak Build Rating 9 | 9 8 9 Average Rating 7 | 7 7 7 On Entrance 5 | . 7 8 Naked Turns . | . . . Heaviest Build 32 | 12 29 32 Greatest Support 40 | 40 40 40 Greatest Overweight (x) 6 | . . 6 Average Overweight (x) . | . . . Largest Inventory Capacity 15 | 8 15 15 Average Capacity 13 | 7 14 15 Most Carried 15 | 7 15 15 Average Carried 11 | 3 12 14 Final Capacity 15 | 8 15 15 Final Carried 15 | 7 15 11 Class Distribution -------------------- 97% | Mutant Dominant Class ---------------- Mutant | -10/Materials Mutant | -9/Materials Resources | -11 -10 -9 ----------- Run | Yrd Mat Mat Matter Collected 396 | 294 44 58 Remotely . | . . . Salvage Created 573 | 160 226 187 Parts 56 | 12 24 20 Haulers Intercepted . | . . . Recyclers Shooed . | . . . Parts Field Recycled . | . . . Retrieved Matter . | . . . Parts Self-Destructed . | . . . Prevented . | . . . Kills | -11 -10 -9 ------- Run | Yrd Mat Mat Combat Hostiles Destroyed 17 | . 9 8 Guns 12 | . 9 3 AOE 5 | . . 5 Classes Destroyed 5 | 2 2 1 Tunneler 3 | 3 . . Recycler 1 | 1 . . Swarmer 11 | . 6 5 Grunt 4 | . 3 1 Sentry 2 | . . 2 Best Kill Streak 4 | 2 4 3 Combat Bots Only 4 | . 4 3 Max Kills in Single Turn 2 | 1 2 2 Gunslinging 1 | . 1 . Exploded 2 | . . 2 Melee . | . . . Uniques/NPCs Destroyed . | . . . Combat | -11 -10 -9 -------- Run | Yrd Mat Mat Hostile Shots Fired 193 | . 41 152 Missed 61 | . 14 47 Damage Taken 1449 | . 229 1220 Core 455 | . 43 412 Absorbed by Shields . | . . . Core Remaining (%) 91 | 100 82 . Volleys Fired 71 | 14 25 32 Largest 2 | 2 2 2 Hottest 60 | 60 60 60 Shots Fired 120 | 28 50 42 Gun 116 | 28 50 38 Cannon . | . . . Launcher 4 | . . 4 Special . | . . . Kinetic 71 | 14 25 32 Thermal . | . . . Explosive 4 | . . 4 Electromagnetic 45 | 14 25 6 Robot Hit Streak 12 | 10 12 7 Robot Miss Streak 3 | 3 3 3 Penetration Max . | . . . Secondary Targets 1 | . 1 . Max Gunslinging Chain 1 | . 1 . Shots Hit Robots 76 | 18 29 29 Core Hits 37 | 6 14 17 Critical Kills 1 | . 1 . Critical Parts Destroyed . | . . . Critical Strikes 1 | . 1 . Destroy 1 | . 1 . Melee Attacks 5 | . . 5 Impact . | . . . Slashing . | . . . Piercing . | . . . Sneak Attacks 1 | . . 1 Combat Hostiles . | . . . Follow-up Attacks . | . . . Damage Inflicted 976 | 197 285 494 Guns 706 | 197 285 224 Cannons . | . . . Explosions 260 | . . 260 Melee . | . . . Ramming 10 | . . 10 Kinetic 318 | 63 97 158 Thermal . | . . . Explosive 260 | . . 260 Electromagnetic 388 | 134 188 66 Impact . | . . . Slashing . | . . . Piercing . | . . . Highest Corruption . | . . . Average Corruption . | . . . Corruption Purged . | . . . Corruption Blocked . | . . . Overload Shots . | . . . Overflow Damage . | . . . Projectiles . | . . . Explosions . | . . . Melee . | . . . Knockbacks . | . . . Impact . | . . . Kinetic . | . . . Secondary . | . . . Self-Inflicted Damage 8 | . . 8 Shots 1 | . . 1 Rammed 1 | . . 1 Targets Rammed 1 | . . 1 Kicked . | . . . Crushed . | . . . Highest Temperature 64 | 40 58 64 Average Temperature 18 | 17 21 14 Received Heat Transfer 303 | . 36 267 Siege Activations . | . . . Robots Corrupted . | . . . Combat Hostiles . | . . . Parts Fried . | . . . Impact Corruptions . | . . . Robots Melted . | . . . Combat Hostiles . | . . . Parts Melted . | . . . Heat Transferred . | . . . Parts Sabotaged . | . . . Parts Stolen . | . . . Parts Stripped . | . . . Power Chain Reactions . | . . . Alert | -11 -10 -9 ------- Run | Yrd Mat Mat Peak Influence 320 | 20 320 168 Initial 13 | . 13 12 Average 58 | 11 88 52 Maximum Alert Level 1 | . 1 . Low Security (%) 96 | 100 91 100 Level 1 3 | . 8 . Level 2 . | . . . Level 3 . | . . . Level 4 . | . . . Level 5 . | . . . High Security . | . . . Max Security . | . . . Squads Dispatched 1 | . 1 . Investigation 1 | . 1 . Extermination . | . . . Reinforcement . | . . . Assault . | . . . Garrison . | . . . Intercept . | . . . Searches Triggered . | . . . Construction Impeded . | . . . Haulers Reinforced . | . . . Active Scanning Responses . | . . . Cargo Convoy Interrupts . | . . . Stealth | -11 -10 -9 --------- Run | Yrd Mat Mat Distress Signals 3 | . 1 2 Communications Jammed . | . . . Distress Signals . | . . . Times Spotted 39 | . 16 23 Peak Tracking Total 7 | . 4 7 Tactical Retreats 5 | . 4 1 Traps | -11 -10 -9 ------- Run | Yrd Mat Mat Traps Triggered 1 | . 1 . Indirectly . | . . . Trap Hack Attempts . | . . . Triggered . | . . . Disarmed . | . . . Reprogrammed . | . . . Reused . | . . . Traps Extracted . | . . . Installed . | . . . Triggered . | . . . Machines | -11 -10 -9 ---------- Run | Yrd Mat Mat Machines Disabled 2 | . 1 1 Max in Single Turn 1 | . 1 1 Machines Repaired . | . . . Machines Dismantled . | . . . Machines Sabotaged . | . . . Overloaded Fab Kills . | . . . Hacking | -11 -10 -9 --------- Run | Yrd Mat Mat Machines Accessed 5 | . 2 3 Terminals 4 | . 2 2 Fabricators . | . . . Repair Stations . | . . . Recycling Units 1 | . . 1 Scanalyzers . | . . . Garrison Access . | . . . Total Hacks 15 | . 6 9 Successful 7 | . 4 3 Failed 8 | . 2 6 Catastrophic . | . . . Database Lockouts . | . . . Manual 9 | . 5 4 Terminals 11 | . 6 5 Fabricators . | . . . Repair Stations . | . . . Recycling Units 4 | . . 4 Scanalyzers . | . . . Garrison Access . | . . . Terminal Hacks 6 | . 4 2 Robot Analysis 1 | . . 1 Branch Access Points 1 | . 1 . Alert Level 2 | . 2 . Unreport Threat 1 | . 1 . Dispatch Records 1 | . . 1 Fabricator Hacks . | . . . Repair Station Hacks . | . . . Recycling Unit Hacks . | . . . Scanalyzer . | . . . Garrison Access Hacks . | . . . Unauthorized Hacks 1 | . . 1 Terminals . | . . . Fabricators . | . . . Repair Stations . | . . . Recycling Units 1 | . . 1 Monitor 1 | . . 1 Scanalyzers . | . . . Garrison Access . | . . . Data Cores Recovered . | . . . Used . | . . . Hacking Detections 2 | . 1 1 Full Trace Events . | . . . Feedback Events . | . . . Feedback Blocked . | . . . Robot Schematics Acquired . | . . . Robots Built . | . . . Authchips . | . . . Time . | . . . Total Robot Build Rating . | . . . Part Schematics Acquired . | . . . Parts Built . | . . . Authchips . | . . . Time . | . . . Total Part Build Rating . | . . . Parts Repaired . | . . . Time . | . . . Parts Recycled . | . . . Recycled Matter . | . . . Retrieved Matter . | . . . Retrieved Components . | . . . Parts Scanalyzed . | . . . Part Schematics Acquired . | . . . Parts Damaged . | . . . Bothacking | -11 -10 -9 ------------ Run | Yrd Mat Mat Used RIF Installer . | . . . Robots Hacked 2 | . . 2 Non-combat 1 | . . 1 Combat 1 | . . 1 Robot Hacks Applied 2 | . . 2 parse_system 2 | . . 2 Relay Couplers Released . | . . . Fabnet Peak Effective % . | . . . Robots Rewired . | . . . Allies Hacked . | . . . Hacks Repelled . | . . . Allies | -11 -10 -9 -------- Run | Yrd Mat Mat Total Allies . | . . . Largest Group . | . . . Highest-Rated Group . | . . . Highest-Rated Ally . | . . . Total Orders . | . . . Ally Attacks . | . . . Total Damage . | . . . Kills . | . . . Allies Corrupted . | . . . Allies Melted . | . . . Intel | -11 -10 -9 ------- Run | Yrd Mat Mat Robot Analysis Total 1 | . . 1 Derelict Logs Recovered . | . . . Drone Launches . | . . . Drone Recoveries . | . . . Exploration | -11 -10 -9 ------------- Run | Yrd Mat Mat Turns Passed 1329 | 253 501 575 Spaces Moved 642 | 141 251 250 Core 29 | 29 . . Treads 588 | 112 251 225 Legs . | . . . Wheels . | . . . Hover . | . . . Flight 25 | . . 25 Fastest Speed 50 | 50 160 111 Average Speed 158 | 137 160 169 Slowest Speed 520 | 160 160 520 Overloaded Moves . | . . . Propulsion Burnouts . | . . . Robots Hopped . | . . . Cave-ins Triggered . | . . . Exploration Rate (%) 23 | 6 43 20 Regions Visited 2 Branch Regions . Pre-discovered Areas . | . . . Known Exits Taken . | . . . Unknown Exits Taken 2 | 1 1 . Scrap Searched . | . . . Spaces Dug . | . . . Terrain Destroyed 20 | . . 20 Melee . | . . . Projectile . | . . . AOE 20 | . . 20 Terrain Rammed . | . . . Walls Destroyed . | . . . Machines Disabled . | . . . Actions | -11 -10 -9 --------- Run | Yrd Mat Mat Total 848 | 174 310 364 Wait 64 | . 11 53 Move 640 | 140 250 250 Hop . | . . . Pick Up 32 | 12 14 6 Fast Attach 2 | 2 . . Attach 11 | 5 . 6 Detach . | . . . Swap 9 | 1 2 6 Drop 13 | . 8 5 Fire 71 | 14 25 32 Melee 5 | . . 5 Ram 1 | . . 1 Kick . | . . . Crush . | . . . Escape Stasis . | . . . Rewire . | . . . Trap . | . . . Miscellaneous . | . . . Route ------- -11/Scrapyard -10/Materials (discovered 3 exits: *Mat / *Min x2) -9/Materials History --------- Turn | Location | Event 6 | -11/Scrapyard | Discovered new exit (range 16) 254 | -11/Scrapyard | Entered Materials 333 | -10/Materials | Identified exit to Mines 334 | -10/Materials | Build established: Mutant 704 | -10/Materials | Discovered new exit (range 14) 755 | -10/Materials | Entered another Materials area 755 | -9/Materials | Evolved 2 slots: Propulsion x2 1294 | -9/Materials | Core integrity fell below 50% 1321 | -9/Materials | Lost 9 parts (1p5n1u2w) 1329 | -9/Materials | Core integrity fell below 20% 1330 | -9/Materials | Destroyed by exploding Nuclear Reactor Last Messages --------------- 01198_ Acquired Shield Generator. 01210_ W-16 Scout sends out distress signal. 01240_ Y-45 Defender destroyed. 01240_ Matter Filter disabled. 01240_ Lgt. Treads destroyed. 01248_ S-10 Pest destroyed. 01249_ Critical hit (Burn: +37). 01249_ Lgt. Treads destroyed. 01252_ Grenade Launcher destroyed. 01255_ Lgt. Ion Engine destroyed. 01271_ Lgt. Assault Rifle destroyed. 01278_ Slammed into S-10 Pest. 01278_ Flight Unit broken. 01278_ Destabilizing: Short circuit. 01282_ Flight Unit destroyed. 01286_ Broken Flight Unit destroyed. 01289_ Critical hit (Destroy). 01290_ Hrd. Light Armor Plating destroyed. 01330_ Nuclear Reactor explodes. 01330_ S-10 Pest destroyed. Map ----- +----------------------------------------------------+ | ???????# #?????????????????????????????????????? | | ???????# ###???????????????????????????????????? | | ???????# ""#???????????????????????????????????? | | ???????# Y"#???????????????????????????????????? | | ???????# ""#???????????????????????????????????? | | ???????# ###???????????????????????????????????? | | ???????# #?????????????????????????????????????? | | ######## #?????????????????????????????????????? | | # #?????????????????????????????????????? | | """"" # #?????????????????????????????????????? | | """"" # #?????????????????????????????????????? | | """"" # #?????????????????????????????????????? | | """"" # #?????????????????????????????????????? | | """"" # #?????????????????????????????????????? | | """"" +% #?????????????????????????????????????? | | """"" # #???#######???????????????????????????? | | # #???# #???????????????????????????? | | ######## ##### ##??????????????????????????? | | ?###### #??????????????????????????? | | #### ##??????????????????????????? | | T #?## #???????????????????????????? | | #??### ###??########?????????????????? | | ####### #???## ###### #?????????????????? | | ??????############ *^^ + #?????????????????? | | ??????????# =# ^^ # #?????????????????? | | ??????????# # #@ #?????????????????? | | ??????????# # # #?????????????????? | | ??????????# ! ] + + s*! #?????????????????? | | ??????????# !] #### #+######?????????????????? | | ??????????# !] #??## #??????????????????????? | | ??????????########???# #??????????????????????? | | ?????????????????????# #########??????????????? | | ?????????????????????# #????????? | | ?????????????????????# ############??????????????? | | ?????????????????????# #?????????????????????????? | | ?????????????????????# #?????????????????????????? | | ?????????????????????# #??#########??????????????? | | ??????????????????####/#### ????????????? | | ??????????????????# = ????????????? | | ??????????????????# "" % ????????????? | | ??????????????????# """ [ ###???????????????? | | ??????????????????# """ #?????????????????? | | ??????????????????# "" = #?????????????????? | | ??????????????????# """ = #?????????????????? | | ??????????????????# "" % #?????????????????? | | ??????????????????# ""% [ ##?????????????????? | | ??????????????????# !* #??????????????????? | | ??????????????????# !# #??????????????????? | | ??????????????????# / # "??????????????????? | | ??????????????????######### "#?????????????????? | +----------------------------------------------------+ Best States ------------- Heat Dissipation 28 Energy Generation 10 Energy Capacity 250 Matter Stores 300 Matter Capacity 300 Sight Range 16 Terrain Scan Range 16 Terrain Scan Density 10 Armor Coverage 150 Evasion (%) 50 Recoil Reduction 2 Item Schematics ----------------- None Robot Schematics ------------------ None Fabricated ------------ Nothing Alien Tech Used ----------------- None Achievements -------------- True Hacker Challenges ------------ None Game ------ Seed CobblerMagneticFragment Manual? 0 Play Time 00:22:44 Cumulative 15.1 hours Start 2025.01.12 @ 12:12:15 End 2025.01.12 @ 12:33:26 Sessions 1 Manual Loads 0 Difficulty Rogue Special Mode None Game No. 8 Rogue 8 Adventurer 0 Explorer 0 Win Type - Total 0 Types 0/0/0/0/0/0/0/0/0 Lore% 12 Gallery% 14 Achievement% 15 Wizard Run 0 Options --------- Layout 1 ASCII 0 Keyboard 1 Movement Numpad Keybinds 0 Fullscreen 1 Font 24/Smallcaps Map View 50x35 Zoom Use 0% Tactical HUD 1 Map Filters NONE Filters NONE Steam 1 RUN: a733bc3d-e9e5-493a-bcb2-58b9e8f7aea7